Workbook

Sheet Bond Example
A1: 5.1.3.7. Bonds and preferred shares with embedded options
A3: Yield Curve Simulation
A4: 2023-12-31 | C4: 1 | D4: =C4+1 -> 2 | E4: 3 | F4: 4 | G4: 5 | H4: 6 | I4: 7 | J4: 8 | K4: 9 | L4: 10 | M4: 11 | N4: 12 | O4: 13 | P4: 14 | Q4: 15 | R4: 16 | S4: 17 | T4: 18 | U4: 19 | V4: 20 | W4: 21 | X4: 22 | Y4: 23 | Z4: 24 | AA4: 25 | AB4: 26 | AC4: 27 | AD4: 28 | AE4: 29 | AF4: 30 | AG4: 31 | AH4: 32 | AI4: 33 | AJ4: =AI4+1 -> 34 | AK4: 35 | AL4: 36 | AM4: 37 | AN4: 38 | AO4: 39 | AP4: 40 | AQ4: 41 | AR4: 42 | AS4: 43 | AT4: 44 | AU4: 45 | AV4: 46 | AW4: 47 | AX4: 48 | AY4: 49 | AZ4: 50 | BA4: 51 | BB4: 52 | BC4: 53 | BD4: 54 | BE4: 55 | BF4: 56 | BG4: 57 | BH4: 58 | BI4: 59 | BJ4: 60 | BK4: 61 | BL4: 62 | BM4: 63 | BN4: 64 | BO4: 65 | BP4: =BO4+1 -> 66 | BQ4: 67 | BR4: 68 | BS4: 69 | BT4: 70 | BU4: 71 | BV4: 72 | BW4: 73 | BX4: 74 | BY4: 75 | BZ4: 76 | CA4: 77 | CB4: 78 | CC4: 79 | CD4: 80 | CE4: 81 | CF4: 82 | CG4: 83 | CH4: 84 | CI4: 85 | CJ4: 86 | CK4: 87 | CL4: 88 | CM4: 89 | CN4: 90 | CO4: 91 | CP4: 92 | CQ4: 93 | CR4: 94 | CS4: 95 | CT4: 96 | CU4: 97 | CV4: =CU4+1 -> 98 | CW4: 99 | CX4: 100 | CY4: 101 | CZ4: 102 | DA4: 103 | DB4: 104 | DC4: 105 | DD4: 106 | DE4: 107 | DF4: 108 | DG4: 109 | DH4: 110 | DI4: 111 | DJ4: 112 | DK4: 113 | DL4: 114 | DM4: 115 | DN4: 116 | DO4: 117 | DP4: 118 | DQ4: 119 | DR4: 120 | DS4: 121 | DT4: 122 | DU4: 123 | DV4: 124 | DW4: 125 | DX4: 126 | DY4: 127 | DZ4: 128 | EA4: 129 | EB4: =EA4+1 -> 130 | EC4: 131 | ED4: 132 | EE4: 133 | EF4: 134 | EG4: 135 | EH4: 136 | EI4: 137 | EJ4: 138 | EK4: 139 | EL4: 140 | EM4: 141 | EN4: 142 | EO4: 143 | EP4: 144 | EQ4: 145 | ER4: 146 | ES4: 147 | ET4: 148 | EU4: 149 | EV4: 150
A5: Year | C5: 1 | D5: =C5+1 -> 2 | E5: =D5+1 -> 3 | F5: 4 | G5: 5 | H5: 6 | I5: 7 | J5: 8 | K5: 9 | L5: 10 | M5: 11 | N5: 12 | O5: 13 | P5: 14 | Q5: 15 | R5: 16 | S5: 17 | T5: 18 | U5: 19 | V5: 20 | W5: 21 | X5: 22 | Y5: 23 | Z5: 24 | AA5: 25 | AB5: 26 | AC5: 27 | AD5: 28 | AE5: 29 | AF5: 30
A7: Yield Curves
A8: Initial Scenario | C8: 0.058 | D8: 0.058 | E8: 0.058 | F8: 0.058 | G8: 0.058 | H8: 0.058 | I8: 0.058 | J8: 0.058 | K8: 0.058 | L8: 0.058 | M8: 0.058 | N8: 0.058 | O8: 0.058 | P8: 0.058 | Q8: 0.058 | R8: 0.058 | S8: 0.058 | T8: 0.058 | U8: 0.058 | V8: 0.058 | W8: 0.0579 | X8: 0.0578 | Y8: 0.0577 | Z8: 0.0576 | AA8: 0.0575 | AB8: 0.0574 | AC8: 0.0573 | AD8: 0.0572 | AE8: 0.0571 | AF8: 0.057 | AG8: 0.0569 | AH8: 0.0568 | AI8: 0.0567 | AJ8: 0.0566 | AK8: 0.0565 | AL8: 0.0564 | AM8: 0.0563 | AN8: 0.0562 | AO8: 0.0561 | AP8: 0.056 | AQ8: 0.0559 | AR8: 0.0558 | AS8: 0.0557 | AT8: 0.0556 | AU8: 0.0555 | AV8: 0.0554 | AW8: 0.0553 | AX8: 0.0552 | AY8: 0.0551 | AZ8: 0.055 | BA8: 0.0549 | BB8: 0.0548 | BC8: 0.0547 | BD8: 0.0546 | BE8: 0.0545 | BF8: 0.0544 | BG8: 0.0543 | BH8: 0.0542 | BI8: 0.0541 | BJ8: 0.054 | BK8: 0.0539 | BL8: 0.0538 | BM8: 0.0537 | BN8: 0.0536 | BO8: 0.0535 | BP8: 0.0534 | BQ8: 0.0533 | BR8: 0.0532 | BS8: 0.0531 | BT8: 0.053 | BU8: 0.053 | BV8: 0.053 | BW8: 0.053 | BX8: 0.053 | BY8: 0.053 | BZ8: 0.053 | CA8: 0.053 | CB8: 0.053 | CC8: 0.053 | CD8: 0.053 | CE8: 0.053 | CF8: 0.053 | CG8: 0.053 | CH8: 0.053 | CI8: 0.053 | CJ8: 0.053 | CK8: 0.053 | CL8: 0.053 | CM8: 0.053 | CN8: 0.053 | CO8: 0.053 | CP8: 0.053 | CQ8: 0.053 | CR8: 0.053 | CS8: 0.053 | CT8: 0.053 | CU8: 0.053 | CV8: 0.053 | CW8: 0.053 | CX8: 0.053 | CY8: 0.053 | CZ8: 0.053 | DA8: 0.053 | DB8: 0.053 | DC8: 0.053 | DD8: 0.053 | DE8: 0.053 | DF8: 0.053 | DG8: 0.053 | DH8: 0.053 | DI8: 0.053 | DJ8: 0.053 | DK8: 0.053 | DL8: 0.053 | DM8: 0.053 | DN8: 0.053 | DO8: 0.053 | DP8: 0.053 | DQ8: 0.053 | DR8: 0.053 | DS8: 0.053 | DT8: 0.053 | DU8: 0.053 | DV8: 0.053 | DW8: 0.053 | DX8: 0.053 | DY8: 0.053 | DZ8: 0.053 | EA8: 0.053 | EB8: 0.053 | EC8: 0.053 | ED8: 0.053 | EE8: 0.053 | EF8: 0.053 | EG8: 0.053 | EH8: 0.053 | EI8: 0.053 | EJ8: 0.053 | EK8: 0.053 | EL8: 0.053 | EM8: 0.053 | EN8: 0.053 | EO8: 0.053 | EP8: 0.053 | EQ8: 0.053 | ER8: 0.053 | ES8: 0.053 | ET8: 0.053 | EU8: 0.053 | EV8: 0.053
A9: Scenario 1 | C9: 0.03205307266 | D9: 0.0323655582 | E9: 0.03267804373 | F9: 0.03299052926 | G9: 0.03330301479 | H9: 0.03361550032 | I9: 0.03392798586 | J9: 0.03424047139 | K9: 0.03455295692 | L9: 0.03486544245 | M9: 0.03517792799 | N9: 0.03549041352 | O9: 0.03580289905 | P9: 0.03611538458 | Q9: 0.03642787011 | R9: 0.03674035565 | S9: 0.03705284118 | T9: 0.03736532671 | U9: 0.03767781224 | V9: 0.03799029778 | W9: 0.03821049182 | X9: 0.03843068586 | Y9: 0.03865087991 | Z9: 0.03887107395 | AA9: 0.039091268 | AB9: 0.03931146204 | AC9: 0.03953165609 | AD9: 0.03975185013 | AE9: 0.03997204418 | AF9: 0.04019223822 | AG9: 0.04041243226 | AH9: 0.04063262631 | AI9: 0.04085282035 | AJ9: 0.0410730144 | AK9: 0.04129320844 | AL9: 0.04151340249 | AM9: 0.04173359653 | AN9: 0.04195379058 | AO9: 0.04217398462 | AP9: 0.04239417867 | AQ9: 0.04261437271 | AR9: 0.04283456675 | AS9: 0.0430547608 | AT9: 0.04327495484 | AU9: 0.04349514889 | AV9: 0.04371534293 | AW9: 0.04393553698 | AX9: 0.04415573102 | AY9: 0.04437592507 | AZ9: 0.04459611911 | BA9: 0.04481631315 | BB9: 0.0450365072 | BC9: 0.04525670124 | BD9: 0.04547689529 | BE9: 0.04569708933 | BF9: 0.04591728338 | BG9: 0.04613747742 | BH9: 0.04635767147 | BI9: 0.04657786551 | BJ9: 0.04679805956 | BK9: 0.0470182536 | BL9: 0.04723844764 | BM9: 0.04745864169 | BN9: 0.04767883573 | BO9: 0.04789902978 | BP9: 0.04811922382 | BQ9: 0.04833941787 | BR9: 0.04855961191 | BS9: 0.04877980596 | BT9: 0.049 | BU9: 0.049 | BV9: 0.049 | BW9: 0.049 | BX9: 0.049 | BY9: 0.049 | BZ9: 0.049 | CA9: 0.049 | CB9: 0.049 | CC9: 0.049 | CD9: 0.049 | CE9: 0.049 | CF9: 0.049 | CG9: 0.049 | CH9: 0.049 | CI9: 0.049 | CJ9: 0.049 | CK9: 0.049 | CL9: 0.049 | CM9: 0.049 | CN9: 0.049 | CO9: 0.049 | CP9: 0.049 | CQ9: 0.049 | CR9: 0.049 | CS9: 0.049 | CT9: 0.049 | CU9: 0.049 | CV9: 0.049 | CW9: 0.049 | CX9: 0.049 | CY9: 0.049 | CZ9: 0.049 | DA9: 0.049 | DB9: 0.049 | DC9: 0.049 | DD9: 0.049 | DE9: 0.049 | DF9: 0.049 | DG9: 0.049 | DH9: 0.049 | DI9: 0.049 | DJ9: 0.049 | DK9: 0.049 | DL9: 0.049 | DM9: 0.049 | DN9: 0.049 | DO9: 0.049 | DP9: 0.049 | DQ9: 0.049 | DR9: 0.049 | DS9: 0.049 | DT9: 0.049 | DU9: 0.049 | DV9: 0.049 | DW9: 0.049 | DX9: 0.049 | DY9: 0.049 | DZ9: 0.049 | EA9: 0.049 | EB9: 0.049 | EC9: 0.049 | ED9: 0.049 | EE9: 0.049 | EF9: 0.049 | EG9: 0.049 | EH9: 0.049 | EI9: 0.049 | EJ9: 0.049 | EK9: 0.049 | EL9: 0.049 | EM9: 0.049 | EN9: 0.049 | EO9: 0.049 | EP9: 0.049 | EQ9: 0.049 | ER9: 0.049 | ES9: 0.049 | ET9: 0.049 | EU9: 0.049 | EV9: 0.049
A10: Scenario 2 | C10: 0.08571677253 | D10: 0.08429244257 | E10: 0.0828681126 | F10: 0.08144378264 | G10: 0.08001945267 | H10: 0.0785951227 | I10: 0.07717079274 | J10: 0.07574646277 | K10: 0.0743221328 | L10: 0.07289780284 | M10: 0.07147347287 | N10: 0.07004914291 | O10: 0.06862481294 | P10: 0.06720048297 | Q10: 0.06577615301 | R10: 0.06435182304 | S10: 0.06292749308 | T10: 0.06150316311 | U10: 0.06007883314 | V10: 0.05865450318 | W10: 0.05846141311 | X10: 0.05826832305 | Y10: 0.05807523299 | Z10: 0.05788214292 | AA10: 0.05768905286 | AB10: 0.0574959628 | AC10: 0.05730287273 | AD10: 0.05710978267 | AE10: 0.05691669261 | AF10: 0.05672360254 | AG10: 0.05653051248 | AH10: 0.05633742241 | AI10: 0.05614433235 | AJ10: 0.05595124229 | AK10: 0.05575815222 | AL10: 0.05556506216 | AM10: 0.0553719721 | AN10: 0.05517888203 | AO10: 0.05498579197 | AP10: 0.05479270191 | AQ10: 0.05459961184 | AR10: 0.05440652178 | AS10: 0.05421343172 | AT10: 0.05402034165 | AU10: 0.05382725159 | AV10: 0.05363416153 | AW10: 0.05344107146 | AX10: 0.0532479814 | AY10: 0.05305489133 | AZ10: 0.05286180127 | BA10: 0.05266871121 | BB10: 0.05247562114 | BC10: 0.05228253108 | BD10: 0.05208944102 | BE10: 0.05189635095 | BF10: 0.05170326089 | BG10: 0.05151017083 | BH10: 0.05131708076 | BI10: 0.0511239907 | BJ10: 0.05093090064 | BK10: 0.05073781057 | BL10: 0.05054472051 | BM10: 0.05035163044 | BN10: 0.05015854038 | BO10: 0.04996545032 | BP10: 0.04977236025 | BQ10: 0.04957927019 | BR10: 0.04938618013 | BS10: 0.04919309006 | BT10: 0.049 | BU10: 0.049 | BV10: 0.049 | BW10: 0.049 | BX10: 0.049 | BY10: 0.049 | BZ10: 0.049 | CA10: 0.049 | CB10: 0.049 | CC10: 0.049 | CD10: 0.049 | CE10: 0.049 | CF10: 0.049 | CG10: 0.049 | CH10: 0.049 | CI10: 0.049 | CJ10: 0.049 | CK10: 0.049 | CL10: 0.049 | CM10: 0.049 | CN10: 0.049 | CO10: 0.049 | CP10: 0.049 | CQ10: 0.049 | CR10: 0.049 | CS10: 0.049 | CT10: 0.049 | CU10: 0.049 | CV10: 0.049 | CW10: 0.049 | CX10: 0.049 | CY10: 0.049 | CZ10: 0.049 | DA10: 0.049 | DB10: 0.049 | DC10: 0.049 | DD10: 0.049 | DE10: 0.049 | DF10: 0.049 | DG10: 0.049 | DH10: 0.049 | DI10: 0.049 | DJ10: 0.049 | DK10: 0.049 | DL10: 0.049 | DM10: 0.049 | DN10: 0.049 | DO10: 0.049 | DP10: 0.049 | DQ10: 0.049 | DR10: 0.049 | DS10: 0.049 | DT10: 0.049 | DU10: 0.049 | DV10: 0.049 | DW10: 0.049 | DX10: 0.049 | DY10: 0.049 | DZ10: 0.049 | EA10: 0.049 | EB10: 0.049 | EC10: 0.049 | ED10: 0.049 | EE10: 0.049 | EF10: 0.049 | EG10: 0.049 | EH10: 0.049 | EI10: 0.049 | EJ10: 0.049 | EK10: 0.049 | EL10: 0.049 | EM10: 0.049 | EN10: 0.049 | EO10: 0.049 | EP10: 0.049 | EQ10: 0.049 | ER10: 0.049 | ES10: 0.049 | ET10: 0.049 | EU10: 0.049 | EV10: 0.049
A11: Scenario 3 | C11: 0.09358742734 | D11: 0.0930622818 | E11: 0.09253713627 | F11: 0.09201199074 | G11: 0.09148684521 | H11: 0.09096169968 | I11: 0.09043655414 | J11: 0.08991140861 | K11: 0.08938626308 | L11: 0.08886111755 | M11: 0.08833597201 | N11: 0.08781082648 | O11: 0.08728568095 | P11: 0.08676053542 | Q11: 0.08623538989 | R11: 0.08571024435 | S11: 0.08518509882 | T11: 0.08465995329 | U11: 0.08413480776 | V11: 0.08360966222 | W11: 0.08307746898 | X11: 0.08254527574 | Y11: 0.08201308249 | Z11: 0.08148088925 | AA11: 0.080948696 | AB11: 0.08041650276 | AC11: 0.07988430951 | AD11: 0.07935211627 | AE11: 0.07881992302 | AF11: 0.07828772978 | AG11: 0.07775553654 | AH11: 0.07722334329 | AI11: 0.07669115005 | AJ11: 0.0761589568 | AK11: 0.07562676356 | AL11: 0.07509457031 | AM11: 0.07456237707 | AN11: 0.07403018382 | AO11: 0.07349799058 | AP11: 0.07296579733 | AQ11: 0.07243360409 | AR11: 0.07190141085 | AS11: 0.0713692176 | AT11: 0.07083702436 | AU11: 0.07030483111 | AV11: 0.06977263787 | AW11: 0.06924044462 | AX11: 0.06870825138 | AY11: 0.06817605813 | AZ11: 0.06764386489 | BA11: 0.06711167165 | BB11: 0.0665794784 | BC11: 0.06604728516 | BD11: 0.06551509191 | BE11: 0.06498289867 | BF11: 0.06445070542 | BG11: 0.06391851218 | BH11: 0.06338631893 | BI11: 0.06285412569 | BJ11: 0.06232193244 | BK11: 0.0617897392 | BL11: 0.06125754596 | BM11: 0.06072535271 | BN11: 0.06019315947 | BO11: 0.05966096622 | BP11: 0.05912877298 | BQ11: 0.05859657973 | BR11: 0.05806438649 | BS11: 0.05753219324 | BT11: 0.057 | BU11: 0.057 | BV11: 0.057 | BW11: 0.057 | BX11: 0.057 | BY11: 0.057 | BZ11: 0.057 | CA11: 0.057 | CB11: 0.057 | CC11: 0.057 | CD11: 0.057 | CE11: 0.057 | CF11: 0.057 | CG11: 0.057 | CH11: 0.057 | CI11: 0.057 | CJ11: 0.057 | CK11: 0.057 | CL11: 0.057 | CM11: 0.057 | CN11: 0.057 | CO11: 0.057 | CP11: 0.057 | CQ11: 0.057 | CR11: 0.057 | CS11: 0.057 | CT11: 0.057 | CU11: 0.057 | CV11: 0.057 | CW11: 0.057 | CX11: 0.057 | CY11: 0.057 | CZ11: 0.057 | DA11: 0.057 | DB11: 0.057 | DC11: 0.057 | DD11: 0.057 | DE11: 0.057 | DF11: 0.057 | DG11: 0.057 | DH11: 0.057 | DI11: 0.057 | DJ11: 0.057 | DK11: 0.057 | DL11: 0.057 | DM11: 0.057 | DN11: 0.057 | DO11: 0.057 | DP11: 0.057 | DQ11: 0.057 | DR11: 0.057 | DS11: 0.057 | DT11: 0.057 | DU11: 0.057 | DV11: 0.057 | DW11: 0.057 | DX11: 0.057 | DY11: 0.057 | DZ11: 0.057 | EA11: 0.057 | EB11: 0.057 | EC11: 0.057 | ED11: 0.057 | EE11: 0.057 | EF11: 0.057 | EG11: 0.057 | EH11: 0.057 | EI11: 0.057 | EJ11: 0.057 | EK11: 0.057 | EL11: 0.057 | EM11: 0.057 | EN11: 0.057 | EO11: 0.057 | EP11: 0.057 | EQ11: 0.057 | ER11: 0.057 | ES11: 0.057 | ET11: 0.057 | EU11: 0.057 | EV11: 0.057
A12: Scenario 4 | C12: 0.03799818747 | D12: 0.03925579743 | E12: 0.0405134074 | F12: 0.04177101736 | G12: 0.04302862733 | H12: 0.0442862373 | I12: 0.04554384726 | J12: 0.04680145723 | K12: 0.0480590672 | L12: 0.04931667716 | M12: 0.05057428713 | N12: 0.05183189709 | O12: 0.05308950706 | P12: 0.05434711703 | Q12: 0.05560472699 | R12: 0.05686233696 | S12: 0.05811994692 | T12: 0.05937755689 | U12: 0.06063516686 | V12: 0.06189277682 | W12: 0.06179492129 | X12: 0.06169706575 | Y12: 0.06159921021 | Z12: 0.06150135468 | AA12: 0.06140349914 | AB12: 0.0613056436 | AC12: 0.06120778807 | AD12: 0.06110993253 | AE12: 0.06101207699 | AF12: 0.06091422146 | AG12: 0.06081636592 | AH12: 0.06071851039 | AI12: 0.06062065485 | AJ12: 0.06052279931 | AK12: 0.06042494378 | AL12: 0.06032708824 | AM12: 0.0602292327 | AN12: 0.06013137717 | AO12: 0.06003352163 | AP12: 0.05993566609 | AQ12: 0.05983781056 | AR12: 0.05973995502 | AS12: 0.05964209948 | AT12: 0.05954424395 | AU12: 0.05944638841 | AV12: 0.05934853287 | AW12: 0.05925067734 | AX12: 0.0591528218 | AY12: 0.05905496627 | AZ12: 0.05895711073 | BA12: 0.05885925519 | BB12: 0.05876139966 | BC12: 0.05866354412 | BD12: 0.05856568858 | BE12: 0.05846783305 | BF12: 0.05836997751 | BG12: 0.05827212197 | BH12: 0.05817426644 | BI12: 0.0580764109 | BJ12: 0.05797855536 | BK12: 0.05788069983 | BL12: 0.05778284429 | BM12: 0.05768498876 | BN12: 0.05758713322 | BO12: 0.05748927768 | BP12: 0.05739142215 | BQ12: 0.05729356661 | BR12: 0.05719571107 | BS12: 0.05709785554 | BT12: 0.057 | BU12: 0.057 | BV12: 0.057 | BW12: 0.057 | BX12: 0.057 | BY12: 0.057 | BZ12: 0.057 | CA12: 0.057 | CB12: 0.057 | CC12: 0.057 | CD12: 0.057 | CE12: 0.057 | CF12: 0.057 | CG12: 0.057 | CH12: 0.057 | CI12: 0.057 | CJ12: 0.057 | CK12: 0.057 | CL12: 0.057 | CM12: 0.057 | CN12: 0.057 | CO12: 0.057 | CP12: 0.057 | CQ12: 0.057 | CR12: 0.057 | CS12: 0.057 | CT12: 0.057 | CU12: 0.057 | CV12: 0.057 | CW12: 0.057 | CX12: 0.057 | CY12: 0.057 | CZ12: 0.057 | DA12: 0.057 | DB12: 0.057 | DC12: 0.057 | DD12: 0.057 | DE12: 0.057 | DF12: 0.057 | DG12: 0.057 | DH12: 0.057 | DI12: 0.057 | DJ12: 0.057 | DK12: 0.057 | DL12: 0.057 | DM12: 0.057 | DN12: 0.057 | DO12: 0.057 | DP12: 0.057 | DQ12: 0.057 | DR12: 0.057 | DS12: 0.057 | DT12: 0.057 | DU12: 0.057 | DV12: 0.057 | DW12: 0.057 | DX12: 0.057 | DY12: 0.057 | DZ12: 0.057 | EA12: 0.057 | EB12: 0.057 | EC12: 0.057 | ED12: 0.057 | EE12: 0.057 | EF12: 0.057 | EG12: 0.057 | EH12: 0.057 | EI12: 0.057 | EJ12: 0.057 | EK12: 0.057 | EL12: 0.057 | EM12: 0.057 | EN12: 0.057 | EO12: 0.057 | EP12: 0.057 | EQ12: 0.057 | ER12: 0.057 | ES12: 0.057 | ET12: 0.057 | EU12: 0.057 | EV12: 0.057
A14: Discount Rates
A15: Initial Scenario | C15: =1/(1+C8)^C$5 -> 0.9451795841 | D15: =1/(1+D8)^D$5 -> 0.8933644462 | E15: =1/(1+E8)^E$5 -> 0.8443898358 | F15: =1/(1+F8)^F$5 -> 0.7981000338 | G15: =1/(1+G8)^G$5 -> 0.754347858 | H15: =1/(1+H8)^H$5 -> 0.7129941947 | I15: =1/(1+I8)^I$5 -> 0.6739075565 | J15: =1/(1+J8)^J$5 -> 0.636963664 | K15: =1/(1+K8)^K$5 -> 0.602045051 | L15: =1/(1+L8)^L$5 -> 0.5690406909 | M15: =1/(1+M8)^M$5 -> 0.5378456436 | N15: =1/(1+N8)^N$5 -> 0.5083607217 | O15: =1/(1+O8)^O$5 -> 0.4804921756 | P15: =1/(1+P8)^P$5 -> 0.4541513947 | Q15: =1/(1+Q8)^Q$5 -> 0.4292546263 | R15: =1/(1+R8)^R$5 -> 0.4057227092 | S15: =1/(1+S8)^S$5 -> 0.3834808216 | T15: =1/(1+T8)^T$5 -> 0.3624582434 | U15: =1/(1+U8)^U$5 -> 0.3425881318 | V15: =1/(1+V8)^V$5 -> 0.3238073079 | W15: =1/(1+W8)^W$5 -> 0.3066641724 | X15: =1/(1+X8)^X$5 -> 0.2904836019 | Y15: =1/(1+Y8)^Y$5 -> 0.2752088527 | Z15: =1/(1+Z8)^Z$5 -> 0.2607866699 | AA15: =1/(1+AA8)^AA$5 -> 0.247167064 | AB15: =1/(1+AB8)^AB$5 -> 0.2343031041 | AC15: =1/(1+AC8)^AC$5 -> 0.2221507227 | AD15: =1/(1+AD8)^AD$5 -> 0.210668535 | AE15: =1/(1+AE8)^AE$5 -> 0.1998176689 | AF15: =1/(1+AF8)^AF$5 -> 0.1895616066
A16: Scenario 1 | C16: =1/(1+C9)^C$5 -> 0.9689424183 | D16: =1/(1+D9)^D$5 -> 0.9382811374 | E16: =1/(1+E9)^E$5 -> 0.908040397 | F16: =1/(1+F9)^F$5 -> 0.8782428864 | G16: =1/(1+G9)^G$5 -> 0.8489097419 | H16: =1/(1+H9)^H$5 -> 0.8200605481 | I16: =1/(1+I9)^I$5 -> 0.7917133437 | J16: =1/(1+J9)^J$5 -> 0.7638846323 | K16: =1/(1+K9)^K$5 -> 0.736589397 | L16: =1/(1+L9)^L$5 -> 0.7098411192 | M16: =1/(1+M9)^M$5 -> 0.6836518013 | N16: =1/(1+N9)^N$5 -> 0.6580319927 | O16: =1/(1+O9)^O$5 -> 0.6329908195 | P16: =1/(1+P9)^P$5 -> 0.6085360173 | Q16: =1/(1+Q9)^Q$5 -> 0.5846739666 | R16: =1/(1+R9)^R$5 -> 0.561409731 | S16: =1/(1+S9)^S$5 -> 0.5387470981 | T16: =1/(1+T9)^T$5 -> 0.5166886222 | U16: =1/(1+U9)^U$5 -> 0.4952356689 | V16: =1/(1+V9)^V$5 -> 0.4743884618 | W16: =1/(1+W9)^W$5 -> 0.4549946798 | X16: =1/(1+X9)^X$5 -> 0.4362090893 | Y16: =1/(1+Y9)^Y$5 -> 0.4180222059 | Z16: =1/(1+Z9)^Z$5 -> 0.4004241871 | AA16: =1/(1+AA9)^AA$5 -> 0.3834048646 | AB16: =1/(1+AB9)^AB$5 -> 0.3669537751 | AC16: =1/(1+AC9)^AC$5 -> 0.3510601902 | AD16: =1/(1+AD9)^AD$5 -> 0.3357131469 | AE16: =1/(1+AE9)^AE$5 -> 0.3209014753 | AF16: =1/(1+AF9)^AF$5 -> 0.3066138271
A17: Scenario 2 | C17: =1/(1+C10)^C$5 -> 0.9210505219 | D17: =1/(1+D10)^D$5 -> 0.8505642764 | E17: =1/(1+E10)^E$5 -> 0.7875412389 | F17: =1/(1+F10)^F$5 -> 0.7311124969 | G17: =1/(1+G10)^G$5 -> 0.6805219079 | H17: =1/(1+H10)^H$5 -> 0.6351104919 | I17: =1/(1+I10)^I$5 -> 0.5943031283 | J17: =1/(1+J10)^J$5 -> 0.5575972025 | K17: =1/(1+K10)^K$5 -> 0.5245529007 | L17: =1/(1+L10)^L$5 -> 0.4947849042 | M17: =1/(1+M10)^M$5 -> 0.4679552699 | N17: =1/(1+N10)^N$5 -> 0.4437673216 | O17: =1/(1+O10)^O$5 -> 0.4219604017 | P17: =1/(1+P10)^P$5 -> 0.4023053577 | Q17: =1/(1+Q10)^Q$5 -> 0.3846006567 | R17: =1/(1+R10)^R$5 -> 0.3686690384 | S17: =1/(1+S10)^S$5 -> 0.3543546311 | T17: =1/(1+T10)^T$5 -> 0.3415204646 | U17: =1/(1+U10)^U$5 -> 0.3300463273 | V17: =1/(1+V10)^V$5 -> 0.3198269201 | W17: =1/(1+W10)^W$5 -> 0.3032664494 | X17: =1/(1+X10)^X$5 -> 0.287668609 | Y17: =1/(1+Y10)^Y$5 -> 0.2729728032 | Z17: =1/(1+Z10)^Z$5 -> 0.2591225023 | AA17: =1/(1+AA10)^AA$5 -> 0.2460649549 | AB17: =1/(1+AB10)^AB$5 -> 0.2337509211 | AC17: =1/(1+AC10)^AC$5 -> 0.2221344263 | AD17: =1/(1+AD10)^AD$5 -> 0.2111725321 | AE17: =1/(1+AE10)^AE$5 -> 0.2008251246 | AF17: =1/(1+AF10)^AF$5 -> 0.1910547182
A18: Scenario 3 | C18: =1/(1+C11)^C$5 -> 0.914421632 | D18: =1/(1+D11)^D$5 -> 0.836970562 | E18: =1/(1+E11)^E$5 -> 0.766816371 | F18: =1/(1+F11)^F$5 -> 0.7032186361 | G18: =1/(1+G11)^G$5 -> 0.6455166826 | H18: =1/(1+H11)^H$5 -> 0.5931205554 | I18: =1/(1+I11)^I$5 -> 0.5455030562 | J18: =1/(1+J11)^J$5 -> 0.5021927185 | K18: =1/(1+K11)^K$5 -> 0.4627676039 | L18: =1/(1+L11)^L$5 -> 0.42684982 | M18: =1/(1+M11)^M$5 -> 0.3941006741 | N18: =1/(1+N11)^N$5 -> 0.3642163837 | O18: =1/(1+O11)^O$5 -> 0.3369242793 | P18: =1/(1+P11)^P$5 -> 0.3119794391 | Q18: =1/(1+Q11)^Q$5 -> 0.2891617057 | R18: =1/(1+R11)^R$5 -> 0.268273039 | S18: =1/(1+S11)^S$5 -> 0.2491351653 | T18: =1/(1+T11)^T$5 -> 0.2315874892 | U18: =1/(1+U11)^U$5 -> 0.2154852371 | V18: =1/(1+V11)^V$5 -> 0.2006978051 | W18: =1/(1+W11)^W$5 -> 0.1871328581 | X18: =1/(1+X11)^X$5 -> 0.1746571946 | Y18: =1/(1+Y11)^Y$5 -> 0.1631744767 | Z18: =1/(1+Z11)^Z$5 -> 0.1525975682 | AA18: =1/(1+AA11)^AA$5 -> 0.142847601 | AB18: =1/(1+AB11)^AB$5 -> 0.1338531394 | AC18: =1/(1+AC11)^AC$5 -> 0.125549435 | AD18: =1/(1+AD11)^AD$5 -> 0.1178777597 | AE18: =1/(1+AE11)^AE$5 -> 0.1107848091 | AF18: =1/(1+AF11)^AF$5 -> 0.1042221679
A19: Scenario 4 | C19: =1/(1+C12)^C$5 -> 0.9633928191 | D19: =1/(1+D12)^D$5 -> 0.9258808214 | E19: =1/(1+E12)^E$5 -> 0.8876810691 | F19: =1/(1+F12)^F$5 -> 0.8490063064 | G19: =1/(1+G12)^G$5 -> 0.8100631157 | H19: =1/(1+H12)^H$5 -> 0.771050234 | I19: =1/(1+I12)^I$5 -> 0.7321570445 | J19: =1/(1+J12)^J$5 -> 0.6935622577 | K19: =1/(1+K12)^K$5 -> 0.6554327888 | L19: =1/(1+L12)^L$5 -> 0.6179228382 | M19: =1/(1+M12)^M$5 -> 0.5811731752 | N19: =1/(1+N12)^N$5 -> 0.5453106237 | O19: =1/(1+O12)^O$5 -> 0.5104477438 | P19: =1/(1+P12)^P$5 -> 0.4766827016 | Q19: =1/(1+Q12)^Q$5 -> 0.4440993169 | R19: =1/(1+R12)^R$5 -> 0.4127672748 | S19: =1/(1+S12)^S$5 -> 0.3827424874 | T19: =1/(1+T12)^T$5 -> 0.3540675896 | U19: =1/(1+U12)^U$5 -> 0.3267725516 | V19: =1/(1+V12)^V$5 -> 0.3008753903 | W19: =1/(1+W12)^W$5 -> 0.2838876383 | X19: =1/(1+X12)^X$5 -> 0.2679084577 | Y19: =1/(1+Y12)^Y$5 -> 0.2528753545 | Z19: =1/(1+Z12)^Z$5 -> 0.2387298549 | AA19: =1/(1+AA12)^AA$5 -> 0.2254172379 | AB19: =1/(1+AB12)^AB$5 -> 0.212886286 | AC19: =1/(1+AC12)^AC$5 -> 0.2010890531 | AD19: =1/(1+AD12)^AD$5 -> 0.1899806488 | AE19: =1/(1+AE12)^AE$5 -> 0.1795190364 | AF19: =1/(1+AF12)^AF$5 -> 0.1696648456
A21: Cashflows to Different Call/Put Dates
A22: ="Y" & COUNT(C22:AF22) & " P" & INDEX($C22:$AF22,COUNT($C22:$AF22))-7 -> Y3 P100 | C22: 7 | D22: 7 | E22: 107
A23: ="Y" & COUNT(C23:AF23) & " P" & INDEX($C23:$AF23,COUNT($C23:$AF23))-7 -> Y5 P102 | C23: 7 | D23: 7 | E23: 7 | F23: 7 | G23: =7+102 -> 109
A24: ="Y" & COUNT(C24:AF24) & " C" & INDEX($C24:$AF24,COUNT($C24:$AF24))-7 -> Y5 C103 | C24: 7 | D24: 7 | E24: 7 | F24: 7 | G24: =7+103 -> 110
A25: ="Y" & COUNT(C25:AF25) & " C" & INDEX($C25:$AF25,COUNT($C25:$AF25))-7 -> Y7 C100 | C25: 7 | D25: 7 | E25: 7 | F25: 7 | G25: 7 | H25: 7 | I25: =107 -> 107
A26: ="Y" & COUNT(C26:AF26) & " P" & INDEX($C26:$AF26,COUNT($C26:$AF26))-7 -> Y8 P99 | C26: 7 | D26: 7 | E26: 7 | F26: 7 | G26: 7 | H26: 7 | I26: 7 | J26: =7+99 -> 106
A27: ="Y" & COUNT(C27:AF27) & " C" & INDEX($C27:$AF27,COUNT($C27:$AF27))-7 -> Y10 C100 | C27: 7 | D27: 7 | E27: 7 | F27: 7 | G27: 7 | H27: 7 | I27: 7 | J27: 7 | K27: 7 | L27: 107
A28: ="Y" & COUNT(C28:AF28) & " C" & INDEX($C28:$AF28,COUNT($C28:$AF28))-7 -> Y11 C100 | C28: 7 | D28: 7 | E28: 7 | F28: 7 | G28: 7 | H28: 7 | I28: 7 | J28: 7 | K28: 7 | L28: 7 | M28: 107
A29: ="Y" & COUNT(C29:AF29) & " C" & INDEX($C29:$AF29,COUNT($C29:$AF29))-7 -> Y12 C100 | C29: 7 | D29: 7 | E29: 7 | F29: 7 | G29: 7 | H29: 7 | I29: 7 | J29: 7 | K29: 7 | L29: 7 | M29: 7 | N29: 107
A30: ="Y" & COUNT(C30:AF30) & " C" & INDEX($C30:$AF30,COUNT($C30:$AF30))-7 -> Y13 C100 | C30: 7 | D30: 7 | E30: 7 | F30: 7 | G30: 7 | H30: 7 | I30: 7 | J30: 7 | K30: 7 | L30: 7 | M30: 7 | N30: 7 | O30: 107
A31: ="Y" & COUNT(C31:AF31) & " C" & INDEX($C31:$AF31,COUNT($C31:$AF31))-7 -> Y14 C100 | C31: 7 | D31: 7 | E31: 7 | F31: 7 | G31: 7 | H31: 7 | I31: 7 | J31: 7 | K31: 7 | L31: 7 | M31: 7 | N31: 7 | O31: 7 | P31: 107
A32: ="Y" & COUNT(C32:AF32) & " C" & INDEX($C32:$AF32,COUNT($C32:$AF32))-7 -> Y15 C100 | C32: 7 | D32: 7 | E32: 7 | F32: 7 | G32: 7 | H32: 7 | I32: 7 | J32: 7 | K32: 7 | L32: 7 | M32: 7 | N32: 7 | O32: 7 | P32: 7 | Q32: 107
A33: ="Y" & COUNT(C33:AF33) & " C" & INDEX($C33:$AF33,COUNT($C33:$AF33))-7 -> Y16 C100 | C33: 7 | D33: 7 | E33: 7 | F33: 7 | G33: 7 | H33: 7 | I33: 7 | J33: 7 | K33: 7 | L33: 7 | M33: 7 | N33: 7 | O33: 7 | P33: 7 | Q33: 7 | R33: 107
A34: ="Y" & COUNT(C34:AF34) & " C" & INDEX($C34:$AF34,COUNT($C34:$AF34))-7 -> Y17 C100 | C34: 7 | D34: 7 | E34: 7 | F34: 7 | G34: 7 | H34: 7 | I34: 7 | J34: 7 | K34: 7 | L34: 7 | M34: 7 | N34: 7 | O34: 7 | P34: 7 | Q34: 7 | R34: 7 | S34: 107
A35: ="Y" & COUNT(C35:AF35) & " C" & INDEX($C35:$AF35,COUNT($C35:$AF35))-7 -> Y18 C100 | C35: 7 | D35: 7 | E35: 7 | F35: 7 | G35: 7 | H35: 7 | I35: 7 | J35: 7 | K35: 7 | L35: 7 | M35: 7 | N35: 7 | O35: 7 | P35: 7 | Q35: 7 | R35: 7 | S35: 7 | T35: 107
A36: ="Y" & COUNT(C36:AF36) & " C" & INDEX($C36:$AF36,COUNT($C36:$AF36))-7 -> Y19 C100 | C36: 7 | D36: 7 | E36: 7 | F36: 7 | G36: 7 | H36: 7 | I36: 7 | J36: 7 | K36: 7 | L36: 7 | M36: 7 | N36: 7 | O36: 7 | P36: 7 | Q36: 7 | R36: 7 | S36: 7 | T36: 7 | U36: 107
A37: ="Y" & COUNT(C37:AF37) & " C" & INDEX($C37:$AF37,COUNT($C37:$AF37))-7 -> Y20 C100 | C37: 7 | D37: 7 | E37: 7 | F37: 7 | G37: 7 | H37: 7 | I37: 7 | J37: 7 | K37: 7 | L37: 7 | M37: 7 | N37: 7 | O37: 7 | P37: 7 | Q37: 7 | R37: 7 | S37: 7 | T37: 7 | U37: 7 | V37: 107
A38: ="Y" & COUNT(C38:AF38) & " C" & INDEX($C38:$AF38,COUNT($C38:$AF38))-7 -> Y21 C100 | C38: 7 | D38: 7 | E38: 7 | F38: 7 | G38: 7 | H38: 7 | I38: 7 | J38: 7 | K38: 7 | L38: 7 | M38: 7 | N38: 7 | O38: 7 | P38: 7 | Q38: 7 | R38: 7 | S38: 7 | T38: 7 | U38: 7 | V38: 7 | W38: 107
A39: ="Y" & COUNT(C39:AF39) & " C" & INDEX($C39:$AF39,COUNT($C39:$AF39))-7 -> Y22 C100 | C39: 7 | D39: 7 | E39: 7 | F39: 7 | G39: 7 | H39: 7 | I39: 7 | J39: 7 | K39: 7 | L39: 7 | M39: 7 | N39: 7 | O39: 7 | P39: 7 | Q39: 7 | R39: 7 | S39: 7 | T39: 7 | U39: 7 | V39: 7 | W39: 7 | X39: 107
A40: ="Y" & COUNT(C40:AF40) & " C" & INDEX($C40:$AF40,COUNT($C40:$AF40))-7 -> Y23 C100 | C40: 7 | D40: 7 | E40: 7 | F40: 7 | G40: 7 | H40: 7 | I40: 7 | J40: 7 | K40: 7 | L40: 7 | M40: 7 | N40: 7 | O40: 7 | P40: 7 | Q40: 7 | R40: 7 | S40: 7 | T40: 7 | U40: 7 | V40: 7 | W40: 7 | X40: 7 | Y40: 107
A41: ="Y" & COUNT(C41:AF41) & " C" & INDEX($C41:$AF41,COUNT($C41:$AF41))-7 -> Y24 C100 | C41: 7 | D41: 7 | E41: 7 | F41: 7 | G41: 7 | H41: 7 | I41: 7 | J41: 7 | K41: 7 | L41: 7 | M41: 7 | N41: 7 | O41: 7 | P41: 7 | Q41: 7 | R41: 7 | S41: 7 | T41: 7 | U41: 7 | V41: 7 | W41: 7 | X41: 7 | Y41: 7 | Z41: 107
A42: ="Y" & COUNT(C42:AF42) & " C" & INDEX($C42:$AF42,COUNT($C42:$AF42))-7 -> Y25 C100 | C42: 7 | D42: 7 | E42: 7 | F42: 7 | G42: 7 | H42: 7 | I42: 7 | J42: 7 | K42: 7 | L42: 7 | M42: 7 | N42: 7 | O42: 7 | P42: 7 | Q42: 7 | R42: 7 | S42: 7 | T42: 7 | U42: 7 | V42: 7 | W42: 7 | X42: 7 | Y42: 7 | Z42: 7 | AA42: 107
A43: ="Y" & COUNT(C43:AF43) & " C" & INDEX($C43:$AF43,COUNT($C43:$AF43))-7 -> Y26 C100 | C43: 7 | D43: 7 | E43: 7 | F43: 7 | G43: 7 | H43: 7 | I43: 7 | J43: 7 | K43: 7 | L43: 7 | M43: 7 | N43: 7 | O43: 7 | P43: 7 | Q43: 7 | R43: 7 | S43: 7 | T43: 7 | U43: 7 | V43: 7 | W43: 7 | X43: 7 | Y43: 7 | Z43: 7 | AA43: 7 | AB43: 107
A44: ="Y" & COUNT(C44:AF44) & " C" & INDEX($C44:$AF44,COUNT($C44:$AF44))-7 -> Y27 C100 | C44: 7 | D44: 7 | E44: 7 | F44: 7 | G44: 7 | H44: 7 | I44: 7 | J44: 7 | K44: 7 | L44: 7 | M44: 7 | N44: 7 | O44: 7 | P44: 7 | Q44: 7 | R44: 7 | S44: 7 | T44: 7 | U44: 7 | V44: 7 | W44: 7 | X44: 7 | Y44: 7 | Z44: 7 | AA44: 7 | AB44: 7 | AC44: 107
A45: ="Y" & COUNT(C45:AF45) & " C" & INDEX($C45:$AF45,COUNT($C45:$AF45))-7 -> Y28 C100 | C45: 7 | D45: 7 | E45: 7 | F45: 7 | G45: 7 | H45: 7 | I45: 7 | J45: 7 | K45: 7 | L45: 7 | M45: 7 | N45: 7 | O45: 7 | P45: 7 | Q45: 7 | R45: 7 | S45: 7 | T45: 7 | U45: 7 | V45: 7 | W45: 7 | X45: 7 | Y45: 7 | Z45: 7 | AA45: 7 | AB45: 7 | AC45: 7 | AD45: 107
A46: ="Y" & COUNT(C46:AF46) & " C" & INDEX($C46:$AF46,COUNT($C46:$AF46))-7 -> Y29 C100 | C46: 7 | D46: 7 | E46: 7 | F46: 7 | G46: 7 | H46: 7 | I46: 7 | J46: 7 | K46: 7 | L46: 7 | M46: 7 | N46: 7 | O46: 7 | P46: 7 | Q46: 7 | R46: 7 | S46: 7 | T46: 7 | U46: 7 | V46: 7 | W46: 7 | X46: 7 | Y46: 7 | Z46: 7 | AA46: 7 | AB46: 7 | AC46: 7 | AD46: 7 | AE46: 107
A47: ="Y" & COUNT(C47:AF47) & " C" & INDEX($C47:$AF47,COUNT($C47:$AF47))-7 -> Y30 C100 | C47: 7 | D47: 7 | E47: 7 | F47: 7 | G47: 7 | H47: 7 | I47: 7 | J47: 7 | K47: 7 | L47: 7 | M47: 7 | N47: 7 | O47: 7 | P47: 7 | Q47: 7 | R47: 7 | S47: 7 | T47: 7 | U47: 7 | V47: 7 | W47: 7 | X47: 7 | Y47: 7 | Z47: 7 | AA47: 7 | AB47: 7 | AC47: 7 | AD47: 7 | AE47: 7 | AF47: 107
A50: Present Value | C50: Initial Scenario | D50: Scenario 1 | E50: Scenario 2 | F50: Scenario 3 | G50: Scenario 4 | K50: Wi | M50: Initial Scenario | N50: Scenario 1 | O50: Scenario 2 | P50: Scenario 3 | Q50: Scenario 4
A51: Put | B51: 3 | C51: =SUMPRODUCT($C22:$AF22,$C$15:$AF$15) -> 103.2195206 | D51: =SUMPRODUCT($C22:$AF22,$C$16:$AF$16) -> 110.5108874 | E51: =SUMPRODUCT($C22:$AF22,$C$17:$AF$17) -> 96.66821615 | F51: =SUMPRODUCT($C22:$AF22,$C$18:$AF$18) -> 94.30909706 | G51: =SUMPRODUCT($C22:$AF22,$C$19:$AF$19) -> 108.2067899 | K51: =A51 -> Put | L51: =B51 -> 3 | M51: =IF(LOWER($K51)="put",MAX(M52,C51),MIN(M52,C51)) -> 106.7467402 | N51: 119.2346195 | O51: 97.2087677 | P51: 94.30909706 | Q51: 114.4886698
A52: Put | B52: 5 | C52: =SUMPRODUCT($C23:$AF23,$C$15:$AF$15) -> 106.5911538 | D52: 118.3857097 | E52: =SUMPRODUCT($C23:$AF23,$C$17:$AF$17) -> 97.2087677 | F52: =SUMPRODUCT($C23:$AF23,$C$18:$AF$18) -> 92.91130881 | G52: =SUMPRODUCT($C23:$AF23,$C$19:$AF$19) -> 113.6786067 | K52: Put | L52: 5 | M52: 106.7467402 | N52: 119.2346195 | O52: 97.2087677 | P52: 92.91130881 | Q52: 114.4886698
A53: Call | B53: 5 | C53: =SUMPRODUCT($C24:$AF24,$C$15:$AF$15) -> 107.3455017 | D53: 119.2346195 | E53: =SUMPRODUCT($C24:$AF24,$C$17:$AF$17) -> 97.88928961 | F53: =SUMPRODUCT($C24:$AF24,$C$18:$AF$18) -> 93.5568255 | G53: =SUMPRODUCT($C24:$AF24,$C$19:$AF$19) -> 114.4886698 | K53: Call | L53: 5 | M53: 106.7467402 | N53: 119.2346195 | O53: 95.83174127 | P53: 88.27140063 | Q53: 114.4886698
A54: Call | B54: 7 | C54: =SUMPRODUCT($C25:$AF25,$C$15:$AF$15) -> 106.7467402 | D54: 122.2506677 | E54: =SUMPRODUCT($C25:$AF25,$C$17:$AF$17) -> 95.83174127 | F54: =SUMPRODUCT($C25:$AF25,$C$18:$AF$18) -> 89.58927809 | G54: =SUMPRODUCT($C25:$AF25,$C$19:$AF$19) -> 114.7903243 | K54: Call | L54: 7 | M54: 106.7467402 | N54: 122.2506677 | O54: 95.83174127 | P54: 88.27140063 | Q54: 114.7903243
A55: Put | B55: 8 | C55: =SUMPRODUCT($C26:$AF26,$C$15:$AF$15) -> 106.8741329 | D55: 124.0511043 | E55: =SUMPRODUCT($C26:$AF26,$C$17:$AF$17) -> 95.5067319 | F55: =SUMPRODUCT($C26:$AF26,$C$18:$AF$18) -> 88.27140063 | G55: =SUMPRODUCT($C26:$AF26,$C$19:$AF$19) -> 115.0922192 | K55: Put | L55: 8 | M55: 108.9163995 | N55: 129.5356513 | O55: 96.91846391 | P55: 88.27140063 | Q55: 115.7751561
A56: Call | B56: N | C56: =MIN(C59:C79) -> 108.9163995 | D56: =MIN(D59:D79) -> 129.5356513 | E56: =MIN(E59:E79) -> 96.91846391 | F56: =MIN(F59:F79) -> 84.80477136 | G56: =MIN(G59:G79) -> 115.7751561 | K56: Call | L56: N | M56: =C56 -> 108.9163995 | N56: =D56 -> 129.5356513 | O56: 96.91846391 | P56: 84.80477136 | Q56: 115.7751561
C57: =INDEX($A$59:$A$79,MATCH(C56,C$59:C$79,0)) -> 10 | D57: =INDEX($A$59:$A$79,MATCH(D56,D$59:D$79,0)) -> 10 | E57: =INDEX($A$59:$A$79,MATCH(E56,E$59:E$79,0)) -> 10 | F57: =INDEX($A$59:$A$79,MATCH(F56,F$59:F$79,0)) -> 23 | G57: =INDEX($A$59:$A$79,MATCH(G56,G$59:G$79,0)) -> 20 | M57: =C57 -> 10 | N57: 10 | O57: 10 | P57: 23 | Q57: 20
A59: 10 | C59: =SUMPRODUCT($C27:$AF27,$C$15:$AF$15) -> 108.9163995 | D59: =SUMPRODUCT($C27:$AF27,$C$16:$AF$16) -> 129.5356513 | E59: =SUMPRODUCT($C27:$AF27,$C$17:$AF$17) -> 96.91846391 | F59: =SUMPRODUCT($C27:$AF27,$C$18:$AF$18) -> 87.46662546 | G59: =SUMPRODUCT($C27:$AF27,$C$19:$AF$19) -> 117.1353289
A60: =A59+1 -> 11 | C60: 109.5618143 | D60: 131.7022821 | E60: 97.51118736 | F60: 86.95041559 | G60: 117.5285748 | K60: Redemption Yr | M60: =IF(M81=1,M82,SUMPRODUCT(M76:M80,$L$76:$L$80)) -> 7 | N60: =IF(N81=1,N82,SUMPRODUCT(N76:N80,$L$76:$L$80)) -> 5 | O60: =IF(O81=1,O82,SUMPRODUCT(O76:O80,$L$76:$L$80)) -> 5 | P60: =IF(P81=1,P82,SUMPRODUCT(P76:P80,$L$76:$L$80)) -> 3 | Q60: =IF(Q81=1,Q82,SUMPRODUCT(Q76:Q80,$L$76:$L$80)) -> 5
A61: =A60+1 -> 12 | C61: 110.1718471 | D61: 133.7465252 | E61: 98.19876378 | F61: 86.51150124 | G61: 117.759494
A62: 13 | C62: 110.7484377 | D62: 135.6733436 | E62: 98.97179461 | F62: 86.14076075 | G62: 117.8463402 | L62: =L51 -> 3 | M62: =M51=C51 -> FALSE | N62: =N51=D51 -> FALSE | O62: FALSE | P62: TRUE | Q62: FALSE
A63: 14 | C63: 111.2934194 | D63: 137.4876155 | E63: 99.82242772 | F63: 85.8301328 | G63: 117.8066149 | L63: 5 | M63: =M52=C52 -> FALSE | N63: FALSE | O63: TRUE | P63: TRUE | Q63: FALSE
A64: 15 | C64: 111.808525 | D64: 139.1941282 | E64: 100.7441622 | F64: 85.57249141 | G64: 117.6569717 | L64: 5 | M64: FALSE | N64: TRUE | O64: FALSE | P64: FALSE | Q64: TRUE
A65: 16 | C65: 112.2953922 | D65: 140.7975727 | E65: 101.7316837 | F65: 85.36153601 | G65: 117.4131384 | L65: 7 | M65: TRUE | N65: TRUE | O65: TRUE | P65: FALSE | Q65: TRUE
A66: 17 | C66: 112.7555692 | D66: 142.3025391 | E66: 102.7807253 | F66: 85.19169479 | G66: 117.0898571 | L66: 8 | M66: FALSE | N66: FALSE | O66: FALSE | P66: TRUE | Q66: FALSE
A67: 18 | C67: 113.1905191 | D67: 143.7135119 | E67: 103.8879519 | F67: 85.05803961 | G67: 116.7008404 | M67: TRUE | N67: TRUE | O67: TRUE | P67: TRUE | Q67: TRUE
A68: 19 | C68: 113.6016249 | D68: 145.0348663 | E68: 105.0508625 | F68: 84.95621106 | G68: 116.2587445
A69: 20 | C69: 113.9901936 | D69: 146.2708648 | E69: 106.2677102 | F69: 84.8823525 | G69: 115.7751561 | L69: =L62 -> 3 | M69: =OR(M$62:M62) -> FALSE | N69: =OR(N$62:N62) -> FALSE | O69: =OR(O$62:O62) -> FALSE | P69: =OR(P$62:P62) -> TRUE | Q69: =OR(Q$62:Q62) -> FALSE
A70: 21 | C70: 114.4225293 | D70: 147.5164493 | E70: 106.7345283 | F70: 84.8357878 | G70: 116.0635943 | L70: 5 | M70: =OR(M$62:M63) -> FALSE | N70: =OR(N$62:N63) -> FALSE | O70: =OR(O$62:O63) -> TRUE | P70: =OR(P$62:P63) -> TRUE | Q70: =OR(Q$62:Q63) -> FALSE
A71: 22 | C71: 114.8378574 | D71: 148.6913539 | E71: 107.1884245 | F71: 84.81082182 | G71: 116.3410355 | L71: 5 | M71: =OR(M$62:M64) -> FALSE | N71: =OR(N$62:N64) -> TRUE | O71: =OR(O$62:O64) -> TRUE | P71: =OR(P$62:P64) -> TRUE | Q71: =OR(Q$62:Q64) -> TRUE
A72: 23 | C72: 115.2368445 | D72: 149.798821 | E72: 107.6296536 | F72: 84.80477136 | G72: 116.6078526 | L72: 7 | M72: =OR(M$62:M65) -> TRUE | N72: =OR(N$62:N65) -> TRUE | O72: =OR(O$62:O65) -> TRUE | P72: =OR(P$62:P65) -> TRUE | Q72: =OR(Q$62:Q65) -> TRUE
A73: 24 | C73: 115.6201329 | D73: 150.8419884 | E73: 108.058481 | F73: 84.8152635 | G73: 116.8644117 | L73: 8 | M73: =OR(M$62:M66) -> TRUE | N73: =OR(N$62:N66) -> TRUE | O73: =OR(O$62:O66) -> TRUE | P73: =OR(P$62:P66) -> TRUE | Q73: =OR(Q$62:Q66) -> TRUE
A74: 25 | C74: 115.9883418 | D74: 151.8238903 | E74: 108.4751809 | F74: 84.84019998 | G74: 117.1110706 | M74: =OR(M$62:M67) -> TRUE | N74: =OR(N$62:N67) -> TRUE | O74: =OR(O$62:O67) -> TRUE | P74: =OR(P$62:P67) -> TRUE | Q74: =OR(Q$62:Q67) -> TRUE
A75: 26 | C75: 116.3420675 | D75: 152.7474577 | E75: 108.880034 | F75: 84.87772579 | G75: 117.3481795
A76: 27 | C76: 116.6818844 | D76: 153.6155206 | E76: 109.2733255 | F76: 84.9262014 | G76: 117.5760795 | L76: =L69 -> 3 | M76: =IF(AND(M69,NOT(M68)),1,0) -> 0 | N76: =IF(AND(N69,NOT(N68)),1,0) -> 0 | O76: 0 | P76: 1 | Q76: 0
A77: 28 | C77: 117.0083454 | D77: 154.4308083 | E77: 109.6553438 | F77: 84.98417819 | G77: 117.7951036 | L77: 5 | M77: =IF(AND(M70,NOT(M69)),1,0) -> 0 | N77: 0 | O77: 1 | P77: 0 | Q77: 0
A78: 29 | C78: 117.3219825 | D78: 155.1959514 | E78: 110.0263789 | F78: 85.05037679 | G78: 118.0055757 | L78: 5 | M78: =IF(AND(M71,NOT(M70)),1,0) -> 0 | N78: 1 | O78: 0 | P78: 0 | Q78: 1
A79: 30 | C79: 117.6233075 | D79: 155.9134834 | E79: 110.3867213 | F79: 85.12366785 | G79: 118.2078105 | L79: 7 | M79: =IF(AND(M72,NOT(M71)),1,0) -> 1 | N79: 0 | O79: 0 | P79: 0 | Q79: 0
L80: 8 | M80: =IF(AND(M73,NOT(M72)),1,0) -> 0 | N80: 0 | O80: 0 | P80: 0 | Q80: 0
C81: base | D81: up | F81: down | L81: N | M81: =IF(AND(M74,NOT(M73)),1,0) -> 0 | N81: 0 | O81: 0 | P81: 0 | Q81: 0
M82: =M57 -> 10 | N82: =N57 -> 10 | O82: 10 | P82: 23 | Q82: 20
